bitfinex/quotes_SOLUSD_20250915
["timestamp","ask_amount","ask_price","bid_price","bid_amount"]
[1757948743603,26.59,233.98,233.91,0.2]
[1757948743815,7.05379623,233.92,233.91,0.2]
[1757948744021,26.0,233.98,233.91,0.2]
[1757948744199,7.05379623,233.92,233.91,0.92]
[1757948744411,7.05379623,233.92,233.91,5.19510716]
[1757948744815,7.05379623,233.92,233.91,0.2]
[1757948745310,7.05379623,233.92,233.91,0.92]
[1757948745818,7.05379623,233.92,233.91,0.2]
[1757948746205,26.0,233.98,233.91,5.19514856]
[1757948746428,7.05379623,233.93,233.92,0.72]
[1757948746626,7.05379623,233.94,233.92,0.72]
[1757948747008,7.05379623,233.93,233.91,15.16301996]
[1757948747203,7.05379623,233.94,233.92,13.59559401]
[1757948747531,7.05379623,233.98,233.94,13.59559401]
[1757948747828,7.05379623,233.98,233.96,13.59559401]
[1757948748012,7.05379623,233.98,233.97,0.72]
[1757948748211,132.5,234.01,233.93,14.31559401]
[1757948748519,7.05379623,233.97,233.94,4.99460032]
[1757948748732,7.05379623,233.97,233.96,13.59559401]
[1757948748908,7.05379623,233.97,233.92,39.47484254]
[1757948749103,7.05379623,233.93,233.92,52.35043655]
[1757948749622,132.5,234.01,233.93,13.59559401]
[1757948749822,7.05379623,233.97,233.95,13.59559401]
[1757948750007,7.05379623,233.97,233.96,14.31559401]
[1757948750618,7.05379623,233.97,233.96,17.86978017]
[1757948750927,7.05379623,233.97,233.94,4.27445124]
[1757948751120,7.05379623,233.95,233.94,13.59559401]
[1757948751321,7.05379623,233.95,233.91,0.2]
[1757948751530,7.05379623,233.92,233.91,0.2]
[1757948755010,14.69759246,233.92,233.91,0.2]
[1757948755837,33.05379623,233.89,233.88,0.06]
[1757948756347,26.0,233.89,233.88,0.06]
[1757948756626,33.05379623,233.89,233.88,0.06]
[1757948757720,13.59559401,233.99,233.88,0.06]
[1757948757921,7.05379623,233.89,233.88,0.06]
[1757948758410,0.59,233.96,233.88,0.06]
[1757948758610,0.59,233.96,233.88,4.33569693]
[1757948758611,7.05379623,233.89,233.88,4.33569693]
[1757948758810,7.05379623,233.89,233.88,0.06]
[1757948759126,7.05379623,233.89,233.88,5.01569693]
[1757948759518,7.05379623,233.89,233.88,0.06]
[1757948759912,63.8552499,233.98,233.88,5.01559534]
[1757948760112,7.05379623,233.89,233.88,5.01559534]
[1757948760722,133.09,234.01,233.9,4.27533133]
[1757948760931,7.05379623,233.93,233.91,0.68]
[1757948761342,7.05379623,233.93,233.92,0.68]
[1757948761551,7.05379623,233.93,233.89,4.27549339]
[1757948761758,7.05379623,233.91,233.89,0.65]
[1757948761918,26.59,233.97,233.9,0.65]
[1757948762422,0.59,233.97,233.9,0.65]
[1757948762851,0.59,233.97,233.91,4.27514856]
[1757948763024,0.59,233.97,233.9,0.65]
[1757948764220,0.59,233.97,233.9,4.92530159]
[1757948764421,26.0,233.98,233.91,0.65]
[1757948764648,4.78337723,233.93,233.91,0.65]
[1757948764940,4.78337723,233.93,233.92,4.2749658]
[1757948765260,26.0,233.98,233.92,0.65]
[1757948765443,4.78337723,233.93,233.92,0.65]
[1757948765635,4.78337723,233.93,233.89,0.65]
[1757948765855,0.59,233.92,233.88,0.06]
[1757948766143,26.0,233.9,233.88,0.06]
[1757948766543,26.59,233.91,233.88,0.06]
[1757948766720,0.59,233.9,233.88,0.06]
[1757948766922,26.0,233.88,233.85,0.06]
[1757948767232,4.78337723,233.87,233.85,0.06]
[1757948769146,4.78337723,233.87,233.86,4.9860626]
[1757948769349,4.78337723,233.87,233.86,0.71]
[1757948770550,4.78337723,233.87,233.86,0.06]
[1757948771421,5.37337723,233.87,233.86,0.06]
[1757948771745,4.78337723,233.87,233.86,0.06]
[1757948772126,5.37337723,233.87,233.86,0.06]
[1757948772950,4.78337723,233.87,233.86,0.06]
[1757948775045,5.37337723,233.87,233.86,0.06]
[1757948775345,4.78337723,233.87,233.86,0.06]
[1757948775641,26.0,233.8,233.65,0.65]
[1757948775827,26.0,233.77,233.65,0.65]
[1757948776032,4.78337723,233.72,233.65,0.65]
[1757948776553,30.78337723,233.8,233.71,0.75]
[1757948776732,4.78337723,233.74,233.71,0.75]
[1757948776937,26.0,233.8,233.71,0.75]
[1757948776938,4.78337723,233.75,233.71,0.75]
[1757948777148,4.78337723,233.75,233.72,0.65]
[1757948777457,4.78337723,233.75,233.73,0.65]
[1757948777657,4.78337723,233.74,233.71,0.1]
[1757948777959,4.78337723,233.73,233.71,0.1]
[1757948778249,4.78337723,233.73,233.72,0.65]
[1757948779452,4.78337723,233.73,233.71,0.16]
[1757948779747,4.78337723,233.72,233.71,0.81]
[1757948780656,4.78337723,233.72,233.71,0.16]
[1757948780858,4.78337723,233.72,233.71,0.81]
[1757948781755,4.78337723,233.72,233.71,0.16]
[1757948782863,5.27337723,233.72,233.71,0.16]
[1757948785560,4.78337723,233.69,233.68,0.2]
[1757948788133,14.33602768,233.69,233.66,0.06]
[1757948788358,4.78337723,233.67,233.66,0.06]
[1757948793547,10.05675446,233.67,233.66,0.06]
[1757948793865,5.27337723,233.67,233.66,0.06]
[1757948794042,4.78337723,233.67,233.66,0.06]
[1757948794452,4.78337723,233.67,233.66,0.76]
[1757948795165,4.78337723,233.67,233.66,0.06]
[1757948797673,4.78337723,233.67,233.66,0.76]
[1757948798151,4.78337723,233.67,233.66,5.03972267]
[1757948798963,4.78337723,233.67,233.66,0.76]
[1757948799172,4.78337723,233.67,233.66,5.03972267]
[1757948800064,4.78337723,233.67,233.66,0.06]
[1757948800943,30.78337723,233.67,233.66,0.06]
[1757948801766,4.78337723,233.67,233.66,0.06]
[1757948805364,0.03,233.68,233.66,0.06]
[1757948805564,0.03,233.68,233.67,0.7]
[1757948805875,4.81337723,233.68,233.67,0.7]
[1757948806771,4.81337723,233.68,233.67,4.97953952]
[1757948807149,0.03,233.68,233.67,4.97953952]
[1757948807455,4.81337723,233.68,233.67,0.7]
[1757948808150,4.81337723,233.68,233.66,0.06]
[1757948808351,4.78337723,233.67,233.66,4.33972267]
[1757948808547,4.78337723,233.67,233.66,0.06]
[1757948811383,10.05675446,233.67,233.66,0.06]
[1757948812355,9.56675446,233.67,233.66,0.06]
[1757948812751,10.05675446,233.67,233.66,0.06]
[1757948812959,9.56675446,233.67,233.66,0.06]
[1757948813250,10.05675446,233.67,233.66,0.06]
[1757948813862,9.56675446,233.67,233.66,0.06]
[1757948814472,26.03,233.68,233.66,0.06]
[1757948814677,4.78337723,233.67,233.66,0.06]
[1757948815874,1.97296097,233.67,233.66,0.06]
[1757948816272,2.46296097,233.67,233.66,0.06]
[1757948816571,1.97296097,233.67,233.66,0.06]
[1757948817649,2.46296097,233.67,233.66,0.06]
[1757948817846,1.97296097,233.67,233.66,0.06]
[1757948818378,27.97296097,233.67,233.66,0.06]
[1757948819366,30.80522899,233.67,233.66,0.06]
[1757948819681,1.97296097,233.67,233.66,0.06]
[1757948820378,1.97296097,233.67,233.66,0.77]
[1757948822382,1.97296097,233.67,233.66,0.06]
[1757948822678,30.80753155,233.67,233.66,0.06]
[1757948823084,27.97296097,233.67,233.66,0.72]
[1757948823264,1.97296097,233.67,233.66,0.72]
[1757948823672,30.80993685,233.67,233.66,0.06]
[1757948823978,31.92016521,233.67,233.66,0.06]
[1757948824562,28.83697588,233.67,233.66,0.06]
[1757948824779,6.41016521,233.67,233.66,0.06]
[1757948824984,5.92016521,233.67,233.66,0.06]
[1757948827261,6.41016521,233.67,233.66,0.06]
[1757948827459,2.83697588,233.67,233.66,0.06]
[1757948827685,5.92016521,233.67,233.66,0.72]
[1757948828077,3.08318933,233.67,233.66,0.72]
[1757948828583,0.03,233.68,233.66,0.72]
[1757948828887,0.03,233.71,233.67,13.59559401]
[1757948829182,0.03,233.71,233.69,13.59559401]
[1757948829576,0.03,233.71,233.7,14.25559401]
[1757948831073,0.03,233.73,233.72,13.59559401]
[1757948831278,3.08318933,233.82,233.72,47.65559401]
[1757948831463,3.08318933,233.78,233.74,13.59559401]
[1757948831663,3.08318933,233.76,233.75,0.66]
[1757948832691,3.08318933,233.76,233.72,0.66]
[1757948832857,3.08318933,233.76,233.66,0.06]
[1757948832858,3.08318933,233.73,233.7,34.06]
[1757948833062,2.8395032,233.79,233.71,0.66]
[1757948833377,0.03,233.74,233.71,0.66]
[1757948833691,0.03,233.74,233.72,0.66]
[1757948834062,0.03,233.74,233.73,0.66]
[1757948834268,0.03,233.74,233.73,14.25559401]
[1757948835063,0.03,233.74,233.73,18.53403494]
[1757948835664,0.03,233.76,233.74,13.59559401]
[1757948835886,2.83602176,233.87,233.74,14.25559401]
[1757948836061,3.08318933,233.84,233.76,13.59559401]
[1757948836264,0.1,233.89,233.73,40.97454327]
[1757948836265,3.08318933,233.87,233.78,13.59559401]
[1757948836477,3.08318933,233.87,233.8,13.59559401]
[1757948836768,3.08318933,233.85,233.82,13.59559401]
[1757948837167,3.08318933,233.87,233.85,4.27624545]
[1757948837372,3.08318933,233.86,233.84,13.59559401]
[1757948837585,3.08318933,233.85,233.84,14.25559401]
[1757948837896,7.0738978,233.85,233.84,14.25559401]
[1757948838687,7.0738978,233.85,233.81,0.66]
[1757948838898,26.1,233.89,233.82,14.25559401]
[1757948839193,7.0738978,233.83,233.82,14.25559401]
[1757948840085,7.0738978,233.84,233.82,18.53238057]
[1757948840309,7.0738978,233.84,233.83,0.66]
[1757948841486,7.0738978,233.84,233.83,4.93661121]
[1757948841683,132.5,233.88,233.83,4.93661121]
[1757948841874,0.1,233.89,233.84,14.25559401]
[1757948842078,0.1,233.89,233.86,13.59559401]
[1757948842372,7.0738978,233.87,233.86,13.59559401]
[1757948842573,7.0738978,233.87,233.86,47.61559401]
[1757948842766,7.0738978,233.87,233.86,48.27559401]
[1757948843476,7.0738978,233.87,233.86,52.55165661]
[1757948843674,0.1,233.89,233.87,13.59559401]
[1757948843890,0.1,233.89,233.87,14.25559401]
[1757948844068,0.1,233.89,233.88,14.25559401]
[1757948845011,0.2,233.92,233.89,13.59559401]
[1757948845305,0.2,233.92,233.89,34.68]
[1757948845595,7.2738978,233.92,233.9,4.93533133]
[1757948845795,7.2738978,233.92,233.91,0.66]
[1757948846196,0.2,233.92,233.91,0.66]
[1757948846492,0.2,233.92,233.9,4.27533133]
[1757948846904,0.2,233.92,233.88,4.27559878]
[1757948847071,0.2,233.92,233.87,14.25559401]
[1757948847072,0.2,233.92,233.89,34.02]
[1757948847272,7.0738978,233.9,233.87,13.59559401]
[1757948847503,0.2,233.92,233.88,34.02]
[1757948847675,0.84,233.92,233.88,34.02]
[1757948847877,0.2,233.92,233.88,34.02]
[1757948848490,7.0738978,233.9,233.89,0.66]
[1757948848795,7.0738978,233.9,233.88,38.2956348]
[1757948849001,0.2,233.92,233.88,38.2956348]
[1757948849002,0.2,233.92,233.89,0.66]
[1757948849174,7.0738978,233.9,233.89,0.66]
[1757948849908,0.2,233.92,233.9,13.59559401]
[1757948850084,0.2,233.92,233.91,14.25559401]
[1757948851900,0.2,233.92,233.91,18.53074257]
[1757948852499,0.2,233.92,233.91,52.69074257]
[1757948853477,1e-08,233.93,233.92,13.59559401]
[1757948853879,1e-08,233.96,233.92,40.28559401]
[1757948854097,1e-08,233.96,233.94,13.59559401]
[1757948854406,1e-08,233.96,233.95,47.73559401]
[1757948856510,1e-08,233.96,233.95,17.87001162]
[1757948856681,1e-08,233.96,233.95,52.01001162]
[1757948857403,1e-08,233.96,233.95,17.87001162]
[1757948857594,1e-08,233.96,233.95,51.99001162]
[1757948860292,1e-08,233.96,233.95,52.68001162]
[1757948860589,1e-08,233.96,233.95,18.56001162]
[1757948860794,1e-08,233.96,233.95,52.64001162]
[1757948860795,3.07251022,233.96,233.95,52.64001162]
[1757948863101,1e-08,233.96,233.95,51.95001162]
[1757948864113,3.07251022,233.96,233.95,47.67559401]
[1757948864403,3.07251022,233.96,233.95,51.95001162]
[1757948864604,1e-08,233.96,233.95,51.95001162]
[1757948871122,0.03,234.01,233.98,13.59559401]
[1757948871307,0.03,234.01,234.0,13.59559401]
[1757948871502,0.03,234.01,234.0,47.57559401]
[1757948872291,0.03,234.01,234.0,51.84909828]
[1757948874719,1e-08,234.04,234.0,62.53285896]
[1757948874920,1e-08,234.04,234.03,39.59559401]
[1757948875426,1e-08,234.04,234.03,40.28559401]
[1757948875717,1e-08,234.04,234.03,39.59559401]
[1757948875894,1e-08,234.04,234.03,77.80855046]
[1757948876416,0.64000001,234.04,234.03,17.86855046]
[1757948876720,0.64000001,234.04,234.03,51.80855046]
[1757948879512,1e-08,234.04,234.03,51.80855046]
[1757948880008,0.64000001,234.04,234.03,17.86855046]
[1757948880197,0.64000001,234.04,234.03,51.78855046]
[1757948880620,1e-08,234.04,234.03,51.78855046]
[1757948880819,0.64000001,234.04,234.03,51.78855046]
[1757948881131,3.71251022,234.04,234.03,51.76855046]
[1757948881630,0.64000001,234.04,234.03,51.78855046]
[1757948881844,0.64000001,234.04,234.03,51.76855046]
[1757948881845,1e-08,234.04,234.03,51.76855046]
[1757948882226,0.64000001,234.04,234.03,17.86855046]
[1757948882420,0.64000001,234.04,234.03,51.76855046]
[1757948883015,1e-08,234.04,234.03,51.76855046]
[1757948883414,0.64000001,234.04,234.03,51.76855046]
[1757948883730,3.71251022,234.04,234.03,17.86855046]
[1757948883934,0.64000001,234.04,234.03,51.74855046]
[1757948884235,1e-08,234.04,234.03,51.74855046]
[1757948884741,0.64000001,234.04,234.03,51.74855046]
[1757948885038,1e-08,234.04,234.03,51.74855046]
[1757948887117,1e-08,234.04,234.03,13.59559401]
[1757948887325,2.6055084,234.04,234.03,47.45559401]
[1757948887524,1e-08,234.04,234.03,47.45559401]
[1757948887926,1e-08,234.04,234.03,51.72855046]
[1757948889360,1e-08,234.04,234.03,52.39855046]
[1757948890046,1e-08,234.04,234.03,52.35855046]
[1757948891050,1e-08,234.04,234.03,38.76295645]
[1757948891253,1e-08,234.04,234.03,52.35855046]
[1757948891933,0.2,234.08,234.07,39.59559401]
[1757948891934,1e-08,234.08,234.07,39.59559401]
[1757948892133,1e-08,234.09,234.07,73.41559401]
[1757948892447,1e-08,234.09,234.08,18.96484212]
[1757948892622,1e-08,234.09,234.08,31.4759188]
[1757948894738,1e-08,234.09,234.08,17.21032479]
[1757948894928,0.64000001,234.09,234.08,16.78312042]
[1757948895134,0.64000001,234.09,234.08,50.58312042]
[1757948895330,1e-08,234.09,234.08,16.78312042]
[1757948895561,1e-08,234.09,234.08,50.58312042]
[1757948895562,2.6055084,234.09,234.08,50.58312042]
[1757948895766,2.6055084,234.09,234.02,10.68249594]
[1757948895938,0.64,234.08,234.02,23.51473364]
[1757948896260,1.96550839,234.05,234.03,33.8]
[1757948896454,1.96550839,234.05,234.04,33.8]
[1757948897145,0.64,234.05,234.04,33.8]
[1757948897346,26.00000001,234.09,234.05,4.27259132]
[1757948897553,0.64,234.08,234.06,33.8]
[1757948897737,2.60550839,234.07,234.05,4.27259132]
[1757948898063,2.60550839,234.06,233.95,4.27441761]
[1757948898269,1.96550839,234.03,233.97,33.78]
[1757948898835,2.60550839,234.02,233.95,15.63046163]
[1757948899035,1.96550839,234.01,233.96,33.78]
[1757948899258,2.60550839,234.02,233.96,33.78]
[1757948899553,2.60550839,234.02,233.97,14.95918279]
[1757948899753,0.64,234.01,233.98,33.78]
[1757948899965,1.96550839,234.0,233.98,33.78]
[1757948900338,2.60550839,234.0,233.98,33.78]
[1757948900538,1.96550839,234.0,233.98,33.78]
[1757948900737,1.96550839,234.0,233.99,33.78]
[1757948901268,1.96550839,234.01,233.99,33.78]
[1757948901737,1.96550839,234.0,233.99,38.0536869]
[1757948902273,2.60550839,234.01,233.99,38.0536869]
[1757948902460,1.96550839,234.0,233.99,38.0536869]
[1757948903471,2.60550839,234.0,233.99,38.0536869]
[1757948903853,1.96550839,234.0,233.95,12.50905158]
[1757948904059,1.96550839,234.0,233.94,10.68637721]
[1757948904060,1.96550839,233.96,233.94,4.27445375]
[1757948904261,1.96550839,233.95,233.94,4.27445375]
[1757948904464,1.96550839,233.95,233.94,38.07445375]
[1757948904960,1.96550839,233.95,233.94,33.8]
[1757948905142,1.96550839,233.95,233.94,38.07460032]
[1757948906147,0.64,234.04,233.94,38.74460032]
[1757948906345,1.96550839,234.06,233.97,26.0]
[1757948906553,1e-08,234.09,233.98,34.47]
[1757948906554,1.96550839,234.08,233.98,34.47]
[1757948906758,1e-08,234.09,233.98,34.47]
[1757948906759,1.9655084,234.09,233.99,0.67]
[1757948906966,1.9655084,234.09,234.0,33.82]
[1757948907462,1.96550839,234.08,234.01,0.67]
[1757948907768,1e-08,234.09,234.01,0.67]
[1757948907944,0.03000001,234.09,234.02,14.95598665]
[1757948908264,4.80566536,234.09,234.03,33.8]
[1757948909254,4.77566535,234.08,234.03,33.8]
[1757948909561,4.77566535,234.08,234.02,4.94313904]
[1757948909562,4.77566535,234.04,234.0,0.67]
[1757948909772,4.77566535,234.06,234.01,34.47]
[1757948909969,4.77566535,234.04,234.01,38.0731482]
[1757948910265,0.64,234.06,234.01,38.0731482]
[1757948910266,4.77566535,234.03,234.01,38.0731482]
[1757948910465,4.77566535,234.02,234.01,38.0731482]
[1757948910647,4.77566535,234.02,233.99,4.27357212]
[1757948910848,4.77566535,234.01,234.0,33.86]
[1757948911546,26.0,234.03,234.0,33.86]
[1757948912254,4.77566535,234.01,233.94,0.06]
[1757948912448,26.0,233.97,233.95,33.86]
[1757948912758,4.77566535,233.96,233.95,33.86]
[1757948912954,4.77566535,233.96,233.94,0.06]
[1757948913275,5.41566535,233.95,233.94,0.06]
[1757948913453,0.64,233.95,233.94,0.06]
[1757948913660,5.41566535,233.95,233.94,0.06]
[1757948913869,26.0,233.92,233.89,0.06]
[1757948914074,26.0,233.91,233.89,0.02]
[1757948914367,4.77566535,233.9,233.89,0.02]
[1757948914756,5.31566535,233.9,233.89,0.02]
[1757948915154,26.54,233.9,233.89,0.02]
[1757948915376,31.31566535,233.9,233.89,0.02]
[1757948916273,31.31566535,233.9,233.86,0.06]
[1757948916578,30.77566535,233.87,233.86,0.06]
[1757948917044,30.77566535,233.87,233.84,0.06]
[1757948917045,5.31566535,233.87,233.84,0.06]
[1757948917248,4.77566535,233.85,233.84,0.06]
[1757948917676,5.31566535,233.85,233.84,0.06]
[1757948918256,26.0,233.82,233.76,19.08]
[1757948918554,30.77566535,233.82,233.76,19.08]
[1757948918761,31.31566535,233.82,233.76,19.08]
[1757948920258,0.54,233.87,233.77,4.95769359]
[1757948920584,4.77566535,233.82,233.77,4.95769359]
[1757948921561,30.77566535,233.82,233.76,23.35784364]
[1757948922181,4.77566535,233.82,233.78,4.95748399]
[1757948922474,26.0,233.86,233.78,4.95748399]
[1757948922782,4.77566535,233.82,233.78,0.68]
[1757948922955,4.77566535,233.82,233.76,19.08]
[1757948923666,30.77566535,233.82,233.76,23.35783852]
[1757948923860,26.0,233.82,233.76,23.35783852]
[1757948924063,30.77566535,233.82,233.76,19.76]
[1757948924367,30.77566535,233.82,233.8,4.27712935]
[1757948924573,26.0,233.82,233.8,4.27712935]
[1757948925582,4.77566535,233.84,233.81,5.05684796]
[1757948926774,4.77566535,233.84,233.81,4.37684796]
[1757948926980,4.77566535,233.84,233.81,0.78]
[1757948927162,4.77566535,233.82,233.81,0.1]
[1757948928178,31.32766329,233.82,233.81,0.1]
[1757948928487,30.78766329,233.82,233.81,0.1]
[1757948928681,4.78766329,233.82,233.81,0.1]
[1757948929692,5.32766329,233.82,233.81,0.1]
[1757948930059,9.6044574,233.82,233.81,0.1]
[1757948930459,5.32766329,233.82,233.81,0.1]
[1757948931986,4.78766329,233.82,233.81,0.1]
[1757948933070,5.32766329,233.82,233.81,0.1]
[1757948933276,4.78766329,233.82,233.81,0.1]
[1757948933781,5.32766329,233.82,233.81,0.1]
[1757948935574,4.78766329,233.82,233.81,0.1]
[1757948935884,26.0,233.79,233.78,0.06]
[1757948936180,4.78766329,233.79,233.78,0.06]
[1757948936387,5.32766329,233.79,233.78,0.06]
[1757948937483,7.0430395,233.79,233.78,0.06]
[1757948937659,11.32038241,233.79,233.78,0.06]
[1757948937860,26.0,233.77,233.76,0.06]
[1757948938057,35.85907165,233.77,233.76,0.06]
[1757948938260,36.39907165,233.77,233.71,0.1]
[1757948938488,1.97181433,233.72,233.71,0.1]
[1757948939081,2.51181433,233.72,233.71,0.1]
[1757948939456,1.97181433,233.72,233.71,0.1]
[1757948939662,3.68748483,233.72,233.71,0.1]
[1757948939878,7.0495078,233.72,233.71,0.1]
[1757948940073,1.7156705,233.72,233.71,0.1]
[1757948940273,11.32813179,233.72,233.71,0.1]
[1757948942084,10.78813179,233.72,233.71,0.1]
[1757948942269,11.32813179,233.72,233.71,0.1]
[1757948942473,10.78813179,233.72,233.71,0.1]
[1757948942677,11.32813179,233.72,233.71,0.1]
[1757948943964,5.99429449,233.72,233.71,0.1]
[1757948944166,10.78813179,233.72,233.71,0.1]
[1757948944589,32.5095078,233.72,233.71,0.1]
[1757948945174,36.78813179,233.72,233.71,0.1]
[1757948945467,32.5095078,233.72,233.71,0.1]
[1757948945785,6.5095078,233.72,233.71,0.1]
[1757948946488,37.32813179,233.72,233.71,0.16]
[1757948946666,10.78813179,233.72,233.71,0.16]
[1757948947379,26.0,233.69,233.57,9.17512356]
[1757948947691,26.0,233.69,233.68,0.06]
[1757948947983,33.74699651,233.69,233.68,0.06]
[1757948948594,33.08699651,233.69,233.68,0.06]
[1757948948889,38.02616977,233.69,233.68,0.06]
[1757948949193,42.307347,233.69,233.68,0.06]
[1757948950070,11.36817374,233.69,233.68,0.06]
[1757948950675,7.08699651,233.69,233.68,0.06]
[1757948950896,11.36616977,233.69,233.68,0.06]
[1757948951100,11.36780863,233.69,233.68,0.06]
[1757948952575,4.28081212,233.69,233.68,0.06]
[1757948952772,11.36780863,233.69,233.68,0.72]
[1757948953199,7.08699651,233.69,233.68,0.06]
[1757948953382,7.74699651,233.69,233.68,0.06]
[1757948954178,12.02616977,233.69,233.68,0.06]
[1757948954778,7.08699651,233.69,233.68,0.06]
[1757948956387,11.36616977,233.69,233.68,0.06]
[1757948957279,45.88616977,233.69,233.68,0.06]
[1757948957494,45.22616977,233.69,233.68,0.06]
[1757948958300,7.08699651,233.69,233.68,0.72]
[1757948958600,7.08699651,233.69,233.68,0.06]
[1757948958811,26.0,233.72,233.68,0.72]
[1757948958974,7.08699651,233.69,233.68,0.72]
[1757948959490,26.03,233.73,233.68,0.72]
[1757948959684,0.03,233.73,233.68,0.72]
[1757948959887,7.08699651,233.7,233.68,0.72]
[1757948960103,0.03,233.73,233.68,0.72]
[1757948960104,0.03,233.73,233.69,0.66]
[1757948960605,26.03,233.73,233.69,0.66]
[1757948960981,26.03,233.73,233.7,0.66]
[1757948961310,7.08699651,233.71,233.68,0.72]
[1757948961503,26.03,233.73,233.69,0.66]
[1757948961811,26.03,233.73,233.7,0.66]
[1757948962509,26.03,233.73,233.71,0.66]
[1757948962683,0.03,233.73,233.71,0.66]
[1757948963582,0.03,233.73,233.71,3.74153269]
[1757948963781,0.03,233.73,233.72,3.08153269]
[1757948963996,0.03,233.73,233.72,3.74153269]
[1757948964182,0.03,233.73,233.72,0.66]
[1757948964595,0.03,233.73,233.72,4.93862399]
[1757948965388,3.11153269,233.73,233.72,0.66]
[1757948965590,0.03,233.73,233.72,0.66]
[1757948965792,7.11255206,233.73,233.72,0.66]
[1757948965985,33.11255206,233.73,233.69,0.66]
[1757948966181,26.03,233.73,233.68,0.06]
[1757948966401,7.08255206,233.69,233.68,0.06]
[1757948966579,26.03,233.73,233.69,0.66]
[1757948966784,33.08255206,233.71,233.7,0.66]
[1757948966982,26.0,233.71,233.68,4.33928702]
[1757948967182,33.08255206,233.71,233.68,0.06]
[1757948967707,0.03,233.73,233.69,0.66]
[1757948968381,7.11255206,233.73,233.69,0.66]
[1757948968706,7.08255206,233.71,233.68,0.06]
[1757948968884,7.08255206,233.71,233.7,0.66]
[1757948969387,7.08255206,233.71,233.68,0.72]
[1757948969590,0.03,233.73,233.69,0.66]
[1757948969890,7.08255206,233.7,233.69,0.66]
[1757948970592,0.03,233.73,233.69,0.66]
[1757948970904,0.03,233.73,233.7,0.66]
[1757948971099,7.08255206,233.71,233.7,0.66]
[1757948971301,7.08255206,233.71,233.68,0.06]
[1757948971600,7.08255206,233.69,233.68,0.06]
[1757948972413,132.5,233.72,233.68,5.01930886]
[1757948972711,7.08255206,233.71,233.68,5.01930886]
[1757948972891,132.5,233.72,233.69,0.68]
[1757948973093,132.5,233.72,233.7,0.68]
[1757948973286,132.5,233.72,233.71,0.68]
[1757948973888,139.58255206,233.72,233.68,5.01930886]
[1757948974208,7.08255206,233.71,233.69,0.68]
[1757948974412,7.08255206,233.7,233.68,0.06]
[1757948974930,7.08255206,233.7,233.68,0.74]
[1757948975293,7.08255206,233.7,233.69,0.68]
[1757948975633,7.08255206,233.7,233.68,0.06]
[1757948975918,7.08255206,233.69,233.68,0.74]
[1757948976208,7.08255206,233.69,233.68,0.06]
[1757948976411,139.58255206,233.72,233.68,0.74]
[1757948976605,139.58255206,233.72,233.68,5.01935638]
[1757948976809,139.58255206,233.72,233.7,4.27899015]
[1757948977006,132.5,233.72,233.71,0.68]
[1757948977321,139.58255206,233.72,233.71,0.68]
[1757948977610,139.58255206,233.72,233.7,4.27899015]
[1757948977915,7.08255206,233.71,233.7,4.95899015]
[1757948978114,132.5,233.72,233.7,4.95899015]
[1757948978498,139.58255206,233.72,233.7,4.27899015]
[1757948978699,132.5,233.72,233.68,0.06]
[1757948979014,132.5,233.72,233.69,4.95915294]
[1757948979221,132.5,233.72,233.7,0.68]
[1757948979424,132.5,233.72,233.71,0.68]
[1757948979622,139.58255206,233.72,233.69,4.95915294]
[1757948979827,7.08255206,233.7,233.68,0.06]
[1757948980009,7.08255206,233.69,233.68,0.06]
[1757948980216,7.08255206,233.71,233.69,0.68]
[1757948980416,7.08255206,233.71,233.68,0.06]
[1757948980417,7.08255206,233.7,233.68,0.06]
[1757948980612,132.5,233.72,233.68,4.3393489]